{"text_format":"3","workbook":"xlsx","n_sheets":4,"sheets":["Start","Utgifter","Inntekter","Fortjeneste og tap – sammendrag"],"not_rendered":{"charts":1},"read":"whole","date_system":"1900"}

{"sheet":"Start","index":0,"n_rows":8,"n_cols":2,"rows_kept":8}
[null,"OM DENNE MALEN"]
[null,"Bruk denne Arrangementsbudsjett-arbeidsboken til å spore påløpte utgifter og inntekter i løpet av et arrangement."]
[null,"Fyll ut arrangementsnavn og skriv inn detaljer i tabellene i Utgifter- og Inntekter-regnearket."]
[null,"Totale utgifter og Totale inntekter beregnes automatisk."]
[null,"Fortjeneste og tap-sammendrag og diagram oppdateres automatisk i regnearket Fortjeneste og tap – sammendrag."]
[null,"Obs! "]
[null,"Flere instruksjoner finnes i kolonne A i hvert regneark. Denne teksten er med hensikt skjult. Hvis du vil fjerne teksten, velger du kolonne A og deretter SLETT. Hvis du vil vise teksten, velger du kolonne A og endrer deretter skriftfarge."]
[null,"Hvis du vil finne ut mer om tabeller, trykker du på SKIFT og deretter på F10 i en tabell. Velg alternativet TABELL, og velg deretter ALTERNATIV TEKST."]

{"sheet":"Utgifter","index":1,"n_rows":32,"n_cols":8,"rows_kept":32,"merged":[[0,1,0,4],[2,1,3,1]]}
["Skriv inn beregnet og faktisk utgifter for hver kategori i de respektive tabellene i dette regnearket, og arrangementsnavn i celle D1 for å tilpasse tittelen for dette og andre regneark. Undertittelen på dette regnearket vises i celle H1. Du finner nyttige instruksjoner om hvordan du bruker dette regnearket, i cellene i denne kolonnen. Neste instruksjon finnes i celle A3.","Arrangementsbudsjett for hendelsesnavn",{"$nulls":5},"UTGIFTER"]
[]
["Totale utgifter-etiketten er i cellen til høyre, Beregnet-etiketten i celle G3 og Faktisk-etiketten er i H3.","TOTALE UTGIFTER",{"$nulls":4},"Beregnet","Faktisk"]
["Totalt beregnede utgifter i celle G4 og totalt faktiske utgifter i H4 beregnes automatisk. Neste instruksjon finnes i celle A6.",{"$nulls":5},{"$f":"SUM(C11,C19,C25,C32,G11,G19,G24)","v":{"v":882,"d":"kr 882.00"}},{"$f":"SUM(D11,D19,D25,D32,H11,H19,H24)","v":{"v":333,"d":"kr 333.00"}}]
[]
["Skriv inn stedsutgifter i tabellen som starter i cellen til høyre, og forfriskningsutgifter i tabellen som starter i celle F6. Neste instruksjon er i celle A13.","Sted","Beregnet","Faktisk",null,"Forfriskninger","Estimert","Faktisk"]
[null,"Utgifter for lokaler",{"v":500,"d":"kr 500.00"},null,null,"Mat"]
[null,"Stedspersonale",{"$nulls":3},"Drikke",{"v":20,"d":"kr 20.00"}]
[null,"Utstyr",{"$nulls":3},"Duker",null,{"v":20,"d":"kr 20.00"}]
[null,"Bord og stoler",{"$nulls":3},"Ansatte og tips"]
[null,"Totalt",{"$f":"SUBTOTAL(109,Stedsutgifter[Beregnet])","v":{"v":500,"d":"kr 500.00"}},{"$f":"SUBTOTAL(109,Stedsutgifter[Faktisk])","v":{"v":0,"d":"kr 0.00"}},null,"Totalt",{"$f":"SUBTOTAL(109,Forfriskningsutgifter[Estimert])","v":{"v":20,"d":"kr 20.00"}},{"$f":"SUBTOTAL(109,Forfriskningsutgifter[Faktisk])","v":{"v":20,"d":"kr 20.00"}}]
[]
["Skriv inn dekorasjonsutgifter i tabellen som starter i cellen til høyre, og programutgifter i tabellen som starter i celle F13. Neste instruksjon finnes i celle A21.","Dekorasjoner","Estimert","Faktisk",null,"Program","Estimert","Faktisk"]
[null,"Blomster",{"v":200,"d":"kr 200.00"},{"v":300,"d":"kr 300.00"},null,"Underholdning"]
[null,"Lys",{"$nulls":3},"Talere",{"v":30,"d":"kr 30.00"}]
[null,"Belysning",{"$nulls":3},"Reise"]
[null,"Ballonger",{"$nulls":3},"Hotell"]
[null,"Papirrekvisita",{"$nulls":3},"Annet"]
[null,"Totalt",{"$f":"SUBTOTAL(109,Dekorasjonsutgifter[Estimert])","v":{"v":200,"d":"kr 200.00"}},{"$f":"SUBTOTAL(109,Dekorasjonsutgifter[Faktisk])","v":{"v":300,"d":"kr 300.00"}},null,"Totalt",{"$f":"SUBTOTAL(109,Programutgifter[Estimert])","v":{"v":30,"d":"kr 30.00"}},{"$f":"SUBTOTAL(109,Programutgifter[Faktisk])","v":{"v":0,"d":"kr 0.00"}}]
[]
["Skriv inn publisitetsutgifter i tabellen som starter i cellen til høyre, og premieutgifter i tabellen som starter i celle F21. Neste instruksjon finnes i celle A27.","Publisitet","Estimert","Faktisk",null,"Premier","Beregnet","Faktisk"]
[null,"Grafikkarbeid",{"$nulls":3},"Bånd/plaketter/pokaler"]
[null,"Kopiering/utskrift",{"v":20,"d":"kr 20.00"},null,null,"Gaver",{"v":100,"d":"kr 100.00"}]
[null,"Porto",{"$nulls":3},"Totalt",{"$f":"SUBTOTAL(109,Premieutgifter[Beregnet])","v":{"v":100,"d":"kr 100.00"}},{"$f":"SUBTOTAL(109,Premieutgifter[Faktisk])","v":{"v":0,"d":"kr 0.00"}}]
[null,"Totalt",{"$f":"SUBTOTAL(109,Publisitetsutgifter[Estimert])","v":{"v":20,"d":"kr 20.00"}},{"$f":"SUBTOTAL(109,Publisitetsutgifter[Faktisk])","v":{"v":0,"d":"kr 0.00"}}]
[]
["Skriv inn diverse utgifter i tabell fra cellen til høyre.","Diverse","Estimert","Faktisk"]
[null,"Telefon",null,{"v":13,"d":"kr 13.00"}]
[null,"Transport",{"v":12,"d":"kr 12.00"}]
[null,"Skrivepapir"]
[null,"Fakstjenester"]
[null,"Totalt",{"$f":"SUBTOTAL(109,DiverseUtgifter[Estimert])","v":{"v":12,"d":"kr 12.00"}},{"$f":"SUBTOTAL(109,DiverseUtgifter[Faktisk])","v":{"v":13,"d":"kr 13.00"}}]

{"sheet":"Inntekter","index":2,"n_rows":29,"n_cols":7,"rows_kept":29,"merged":[[0,1,0,3],[2,1,3,1]]}
["Skriv inn beregnet og faktisk inntekter fra hver kategori i de respektive tabellene i dette regnearket. Tittelen på dette regnearket oppdateres automatisk i cellen til høyre. Undertittelen er i celle G1. Du finner nyttige instruksjoner om hvordan du bruker dette regnearket, i cellene i denne kolonnen. Neste instruksjon finnes i celle A3.",{"$f":"Utgifter!B1","v":"Arrangementsbudsjett for hendelsesnavn"},{"$nulls":4},"INNTEKTER"]
[]
["Totale inntekter-etiketten er i cellen til høyre, Beregnet-etiketten i celle F3 og Faktisk-etiketten er i G3.","TOTALE INNTEKTER",{"$nulls":3},"Beregnet","Faktisk"]
["Totalt beregnede inntekter beregnes automatisk i celle F4 og totalt faktiske inntekter i G4.",{"$nulls":4},{"$f":"SUM(Adgang[[#Totals],[Beregnet inntekt]],AnnonserIProgrammet[[#Totals],[Beregnet inntekt]],UtstillereOgLeverandører[[#Totals],[Beregnet inntekt]],SalgAvElement[[#Totals],[Beregnet inntekt]])","v":{"v":1936,"d":"kr 1,936.00"}},{"$f":"SUM(Adgang[[#Totals],[Faktisk inntekt]],AnnonserIProgrammet[[#Totals],[Faktisk inntekt]],UtstillereOgLeverandører[[#Totals],[Faktisk inntekt]],SalgAvElement[[#Totals],[Faktisk inntekt]])","v":{"v":1831,"d":"kr 1,831.00"}}]
["Adgang-etiketten finnes i cellen til høyre.","ADGANG"]
["Skriv inn beregnet og faktisk antall gjester med billettsatser i tabellen som begynner i cellen til høyre. Beregnede og faktiske inntekter fra adgang beregnes automatisk. Neste instruksjon finnes i celle A11.","BEREGNET ANT.","Faktisk ant.","Type","Pris","Beregnet inntekt","Faktisk inntekt"]
[null,300,278,"Voksne @",{"v":5,"d":"kr 5.00"},{"$f":"B7*E7","v":{"v":1500,"d":"kr 1,500.00"}},{"$f":"C7*E7","v":{"v":1390,"d":"kr 1,390.00"}}]
[null,197,195,"Barn @",{"v":2,"d":"kr 2.00"},{"$f":"B8*E8","v":{"v":394,"d":"kr 394.00"}},{"$f":"C8*E8","v":{"v":390,"d":"kr 390.00"}}]
[null,42,51,"Annet @",{"v":1,"d":"kr 1.00"},{"$f":"B9*E9","v":{"v":42,"d":"kr 42.00"}},{"$f":"C9*E9","v":{"v":51,"d":"kr 51.00"}}]
[null,"Totalt",{"$nulls":3},{"$f":"SUBTOTAL(109,Adgang[Beregnet inntekt])","v":{"v":1936,"d":"kr 1,936.00"}},{"$f":"SUBTOTAL(109,Adgang[Faktisk inntekt])","v":{"v":1831,"d":"kr 1,831.00"}}]
["Etiketten for annonser i programmet finnes i cellen til høyre.","ANNONSER I PROGRAMMET"]
["Skriv inn beregnet og faktisk antall annonser i programmet og annonsesatser i tabellen som begynner i cellen til høyre. Beregnede og faktiske inntekter fra annonser beregnes automatisk. Neste instruksjon er i celle A17.","BEREGNET ANT.","Faktisk ant.","Type","Pris","Beregnet inntekt","Faktisk inntekt"]
[null,12,null,"For- og baksider @",null,{"$f":"B13*E13","v":{"v":0,"d":"kr 0.00"}},{"$f":"C13*E13","v":{"v":0,"d":"kr 0.00"}}]
[null,null,158,"Halvsider @",null,{"$f":"B14*E14","v":{"v":0,"d":"kr 0.00"}},{"$f":"C14*E14","v":{"v":0,"d":"kr 0.00"}}]
[null,4,null,"Kvartsider @",null,{"$f":"B15*E15","v":{"v":0,"d":"kr 0.00"}},{"$f":"C15*E15","v":{"v":0,"d":"kr 0.00"}}]
[null,"Totalt",{"$nulls":3},{"$f":"SUBTOTAL(109,AnnonserIProgrammet[Beregnet inntekt])","v":{"v":0,"d":"kr 0.00"}},{"$f":"SUBTOTAL(109,AnnonserIProgrammet[Faktisk inntekt])","v":{"v":0,"d":"kr 0.00"}}]
["Etikett for utstillere eller leverandører er i cellen til høyre.","UTSTILLERE/LEVERANDØRER"]
["Skriv inn beregnet og faktisk antall utstillere og leverandører og standsatser i tabellen som begynner i cellen til høyre. Beregnede og faktiske inntekter beregnes automatisk. Neste instruksjon finnes i celle A23.","BEREGNET ANT.","Faktisk ant.","Type","Pris","Beregnet inntekt","Faktisk inntekt"]
[null,23,null,"Store stand @",null,{"$f":"B19*E19","v":{"v":0,"d":"kr 0.00"}},{"$f":"C19*E19","v":{"v":0,"d":"kr 0.00"}}]
[null,354,null,"Middels stand @",null,{"$f":"B20*E20","v":{"v":0,"d":"kr 0.00"}},{"$f":"C20*E20","v":{"v":0,"d":"kr 0.00"}}]
[null,56,null,"Små stand @",null,{"$f":"B21*E21","v":{"v":0,"d":"kr 0.00"}},{"$f":"C21*E21","v":{"v":0,"d":"kr 0.00"}}]
[null,"Totalt",{"$nulls":3},{"$f":"SUBTOTAL(109,UtstillereOgLeverandører[Beregnet inntekt])","v":{"v":0,"d":"kr 0.00"}},{"$f":"SUBTOTAL(109,UtstillereOgLeverandører[Faktisk inntekt])","v":{"v":0,"d":"kr 0.00"}}]
["Etiketten for salg av elementer finnes i cellen til høyre.","SALG AV ELEMENT"]
["Skriv inn beregnet og faktisk antall elementer solgt og elementsatser i tabellen som begynner i cellen til høyre. Beregnede og faktiske inntekter beregnes automatisk.","BEREGNET ANT.","Faktisk ant.","Type","Pris","Beregnet inntekt","Faktisk inntekt"]
[{"$nulls":3},"Elementer @",null,{"$f":"B25*E25","v":{"v":0,"d":"kr 0.00"}},{"$f":"C25*E25","v":{"v":0,"d":"kr 0.00"}}]
[null,123,null,"Elementer @",null,{"$f":"B26*E26","v":{"v":0,"d":"kr 0.00"}},{"$f":"C26*E26","v":{"v":0,"d":"kr 0.00"}}]
[{"$nulls":3},"Elementer @",null,{"$f":"B27*E27","v":{"v":0,"d":"kr 0.00"}},{"$f":"C27*E27","v":{"v":0,"d":"kr 0.00"}}]
[null,13,null,"Elementer @",null,{"$f":"B28*E28","v":{"v":0,"d":"kr 0.00"}},{"$f":"C28*E28","v":{"v":0,"d":"kr 0.00"}}]
[null,"Totalt",{"$nulls":3},{"$f":"SUBTOTAL(109,SalgAvElement[Beregnet inntekt])","v":{"v":0,"d":"kr 0.00"}},{"$f":"SUBTOTAL(109,SalgAvElement[Faktisk inntekt])","v":{"v":0,"d":"kr 0.00"}}]

{"sheet":"Fortjeneste og tap – sammendrag","index":3,"n_rows":8,"n_cols":7,"rows_kept":8,"merged":[[0,1,0,3],[2,4,11,6]]}
["Fortjeneste og tap-sammendrag og diagram som viser totale inntekter og utgifter, oppdateres automatisk i dette regnearket. Tittelen på dette regnearket oppdateres automatisk i cellen til høyre. Undertittelen er i celle G1 og G2. Du finner nyttige instruksjoner om hvordan du bruker dette regnearket, i cellene i denne kolonnen. Neste instruksjon finnes i celle A3.",{"$f":"Utgifter!B1","v":"Arrangementsbudsjett for hendelsesnavn"},{"$nulls":4},"FORTJENESTE "]
[{"$nulls":6},"Tapssammendrag"]
["Stolpediagram som sammenligner beregnede inntekter og utgifter og faktiske inntekter og utgifter, er i celle E3.",{"$nulls":3},"Stolpediagram som viser sammenligning av estimerte inntekter og utgifter og faktiske inntekter og utgifter, er i denne cellen."]
["Sammendragstabellen som starter i cellen til høyre, oppdateres automatisk Neste instruksjon er i celle A8."," Totalt","Beregnet","Faktisk"]
[null,"Totale inntekter",{"$f":"Inntekter!F4","v":{"v":1936,"d":"kr 1,936.00"}},{"$f":"Inntekter!G4","v":{"v":1831,"d":"kr 1,831.00"}}]
[null,"Totale utgifter",{"$f":"Utgifter!G4","v":{"v":882,"d":"kr 882.00"}},{"$f":"Utgifter!H4","v":{"v":333,"d":"kr 333.00"}}]
[]
["Beregnet total fortjeneste og tap beregnes automatisk i celle C8 og faktisk total fortjeneste eller tap i celle D8.","Total fortjeneste (eller tap)",{"$f":"C5-C6","v":{"v":1054,"d":"kr 1,054.00"}},{"$f":"D5-D6","v":{"v":1498,"d":"kr 1,498.00"}}]